[Event "Titled Tuesday Blitz March 07 Early 2023"]
[White "Sadubayev, Airat"]
[Black "Necula, Iulian"]
[WhiteFideId "13713264"]
[BlackFideId "1232380"]
[WhiteElo "2129"]
[BlackElo "1790"]
[Result "1-0"]
[Round "06"]
[TimeControl "180+2"]
[Date "2023.03.07"]
[WhiteClock "0:00:17"]
[BlackClock "0:00:26"]

1. d4 {[%clk 0:02:56]}  d6 {[%clk 0:02:59]} 2. c4 {[%clk 0:02:56]}  f5 {[%clk 0:02:59]} 3. Nc3 {[%clk 0:02:55]}  Nf6 {[%clk 0:03:00]} 4. Nf3 {[%clk 0:02:55]}  g6 {[%clk 0:03:00]} 5. g3 {[%clk 0:02:56]}  Bg7 {[%clk 0:03:00]} 6. Bg2 {[%clk 0:02:56]}  O-O {[%clk 0:03:01]} 7. O-O {[%clk 0:02:57]}  Qe8 {[%clk 0:03:01]} 8. Bf4 {[%clk 0:02:46]}  Nh5 {[%clk 0:02:59]} 9. Bd2 {[%clk 0:02:36]}  c6 {[%clk 0:02:59]} 10. d5 {[%clk 0:02:29]}  e5 {[%clk 0:02:55]} 11. dxe6 {[%clk 0:02:27]}  Bxe6 {[%clk 0:02:55]} 12. Be3 {[%clk 0:02:16]}  Bxc4 {[%clk 0:02:42]} 13. Qxd6 {[%clk 0:02:13]}  Na6 {[%clk 0:02:19]} 14. Bg5 {[%clk 0:01:55]}  Nf6 {[%clk 0:02:09]} 15. Rad1 {[%clk 0:01:36]}  h6 {[%clk 0:01:59]} 16. Be3 {[%clk 0:01:23]}  Nd5 {[%clk 0:01:42]} 17. Bd4 {[%clk 0:01:11]}  Rd8 {[%clk 0:01:35]} 18. Qa3 {[%clk 0:01:04]}  Nxc3 {[%clk 0:01:29]} 19. Qxc3 {[%clk 0:00:49]}  Bxe2 {[%clk 0:01:03]} 20. Rfe1 {[%clk 0:00:40]}  Bxd4 {[%clk 0:00:50]} 21. Nxd4 {[%clk 0:00:35]}  Bxd1 {[%clk 0:00:34]} 22. Rxe8 {[%clk 0:00:29]}  Rfxe8 {[%clk 0:00:35]} 23. Qc4+ {[%clk 0:00:25]}  Kh8 {[%clk 0:00:29]} 24. Ne6 {[%clk 0:00:18]}  Rd6 {[%clk 0:00:26]} 25. Qc3+ {[%clk 0:00:17]} 1-0


[Site "https://www.chess.com"]

[Event "Titled Tuesday Blitz March 07 Early 2023"]
[White "Martinez, Shawn"]
[Black "Tarnowska, Aleksandra"]
[WhiteFideId "2039770"]
[BlackFideId "1180967"]
[WhiteElo "2174"]
[BlackElo "1776"]
[Result "0-1"]
[Round "06"]
[TimeControl "180+2"]
[Date "2023.03.07"]
[WhiteClock "0:00:01"]
[BlackClock "0:00:22"]

1. d4 {[%clk 0:02:57]}  d5 {[%clk 0:03:00]} 2. c4 {[%clk 0:02:56]}  c6 {[%clk 0:02:56]} 3. Nc3 {[%clk 0:02:53]}  Bf5 {[%clk 0:02:54]} 4. Bf4 {[%clk 0:02:51]}  e6 {[%clk 0:02:51]} 5. Nf3 {[%clk 0:02:50]}  Nf6 {[%clk 0:02:51]} 6. e3 {[%clk 0:02:50]}  Qb6 {[%clk 0:02:35]} 7. Qb3 {[%clk 0:02:24]}  Nbd7 {[%clk 0:02:17]} 8. Be2 {[%clk 0:02:15]}  Qxb3 {[%clk 0:01:57]} 9. axb3 {[%clk 0:02:10]}  Bc2 {[%clk 0:01:57]} 10. Nd2 {[%clk 0:01:53]}  Be7 {[%clk 0:01:42]} 11. O-O {[%clk 0:01:50]}  O-O {[%clk 0:01:39]} 12. Rac1 {[%clk 0:01:44]}  Bg6 {[%clk 0:01:37]} 13. Rfd1 {[%clk 0:01:15]}  h6 {[%clk 0:01:20]} 14. Bf3 {[%clk 0:01:00]}  Nh5 {[%clk 0:01:12]} 15. Bg3 {[%clk 0:00:55]}  Nxg3 {[%clk 0:01:11]} 16. hxg3 {[%clk 0:00:56]}  Nf6 {[%clk 0:00:47]} 17. Re1 {[%clk 0:00:47]}  Bb4 {[%clk 0:00:46]} 18. Re2 {[%clk 0:00:09]}  Bd3 {[%clk 0:00:43]} 19. Ree1 {[%clk 0:00:08]}  g5 {[%clk 0:00:43]} 20. g4 {[%clk 0:00:07]}  Bg6 {[%clk 0:00:41]} 21. g3 {[%clk 0:00:03]}  Rfe8 {[%clk 0:00:40]} 22. Bg2 {[%clk 0:00:04]}  h5 {[%clk 0:00:37]} 23. gxh5 {[%clk 0:00:03]}  Bxh5 {[%clk 0:00:34]} 24. e4 {[%clk 0:00:03]}  dxe4 {[%clk 0:00:30]} 25. Ncxe4 {[%clk 0:00:02]}  Nxe4 {[%clk 0:00:29]} 26. Nxe4 {[%clk 0:00:02]}  Bxe1 {[%clk 0:00:28]} 27. Rxe1 {[%clk 0:00:03]}  Kg7 {[%clk 0:00:24]} 28. Nxg5 {[%clk 0:00:02]}  Bg6 {[%clk 0:00:22]} 29. Ne4 {[%clk 0:00:02]}  Bxe4 {[%clk 0:00:21]} 30. Bxe4 {[%clk 0:00:03]}  Rad8 {[%clk 0:00:22]} 31. Bg2 {[%clk 0:00:03]}  Rxd4 {[%clk 0:00:22]} 32. f4 {[%clk 0:00:01]}  Red8 {[%clk 0:00:22]} 0-1


[Site "https://www.chess.com"]

[Event "Titled Tuesday Blitz March 07 Early 2023"]
[White "Kaplan, Avi Harrison"]
[Black "Comas Fabrego, Lluis"]
[WhiteFideId "30934559"]
[BlackFideId "2200325"]
[WhiteElo "1983"]
[BlackElo "2523"]
[Result "1-0"]
[Round "06"]
[TimeControl "180+2"]
[Date "2023.03.07"]
[WhiteClock "0:01:00"]
[BlackClock "0:01:18"]

1. g3 {[%clk 0:02:55]}  d5 {[%clk 0:02:59]} 2. Bg2 {[%clk 0:02:51]}  Nf6 {[%clk 0:02:59]} 3. d3 {[%clk 0:02:43]}  g6 {[%clk 0:02:59]} 4. f4 {[%clk 0:02:36]}  Bg7 {[%clk 0:02:57]} 5. Nf3 {[%clk 0:02:36]}  O-O {[%clk 0:02:57]} 6. O-O {[%clk 0:02:36]}  c5 {[%clk 0:02:57]} 7. c3 {[%clk 0:02:36]}  Nc6 {[%clk 0:02:55]} 8. Qe1 {[%clk 0:02:37]}  d4 {[%clk 0:02:39]} 9. a4 {[%clk 0:02:32]}  Nd5 {[%clk 0:02:36]} 10. cxd4 {[%clk 0:02:28]}  cxd4 {[%clk 0:02:34]} 11. Na3 {[%clk 0:02:27]}  e5 {[%clk 0:02:25]} 12. fxe5 {[%clk 0:02:20]}  Nxe5 {[%clk 0:02:26]} 13. Nxe5 {[%clk 0:02:10]}  Bxe5 {[%clk 0:02:25]} 14. Nc4 {[%clk 0:02:11]}  Bg7 {[%clk 0:02:19]} 15. Bd2 {[%clk 0:01:25]}  Be6 {[%clk 0:02:16]} 16. a5 {[%clk 0:01:17]}  Qd7 {[%clk 0:02:04]} 17. b4 {[%clk 0:01:13]}  Rae8 {[%clk 0:01:59]} 18. Qf2 {[%clk 0:01:09]}  Ne3 {[%clk 0:01:37]} 19. Nxe3 {[%clk 0:01:06]}  dxe3 {[%clk 0:01:37]} 20. Bxe3 {[%clk 0:01:07]}  Bxa1 {[%clk 0:01:37]} 21. Rxa1 {[%clk 0:01:08]}  Bd5 {[%clk 0:01:19]} 22. Bh6 {[%clk 0:01:01]}  Bxg2 {[%clk 0:01:18]} 23. Qf6 {[%clk 0:01:00]} 1-0


[Site "https://www.chess.com"]

[Event "Titled Tuesday Blitz March 07 Early 2023"]
[White "Sanchez, Robert"]
[Black "Biriukov, Ilja"]
[WhiteFideId "2034360"]
[BlackFideId "4113373"]
[WhiteElo "2316"]
[BlackElo "2426"]
[Result "0-1"]
[Round "06"]
[TimeControl "180+2"]
[Date "2023.03.07"]
[WhiteClock "0:02:33"]
[BlackClock "0:01:49"]

1. e4 {[%clk 0:03:00]}  e6 {[%clk 0:02:56]} 2. d4 {[%clk 0:03:00]}  d5 {[%clk 0:02:57]} 3. Nc3 {[%clk 0:03:01]}  Bb4 {[%clk 0:02:54]} 4. e5 {[%clk 0:03:01]}  c5 {[%clk 0:02:54]} 5. Bd2 {[%clk 0:03:01]}  cxd4 {[%clk 0:02:53]} 6. Nb5 {[%clk 0:03:01]}  Be7 {[%clk 0:02:53]} 7. Nf3 {[%clk 0:03:00]}  Nc6 {[%clk 0:02:51]} 8. Nbxd4 {[%clk 0:03:01]}  Qb6 {[%clk 0:02:45]} 9. Bb5 {[%clk 0:02:58]}  Bd7 {[%clk 0:02:44]} 10. c3 {[%clk 0:02:54]}  Nxe5 {[%clk 0:02:33]} 11. Bxd7+ {[%clk 0:02:52]}  Nxd7 {[%clk 0:02:32]} 12. O-O {[%clk 0:02:51]}  Ngf6 {[%clk 0:02:31]} 13. b4 {[%clk 0:02:48]}  Ne4 {[%clk 0:02:26]} 14. a4 {[%clk 0:02:47]}  O-O {[%clk 0:02:21]} 15. a5 {[%clk 0:02:47]}  Qc7 {[%clk 0:02:14]} 16. Rc1 {[%clk 0:02:47]}  a6 {[%clk 0:02:09]} 17. Qe2 {[%clk 0:02:41]}  Ndf6 {[%clk 0:01:54]} 18. Qd3 {[%clk 0:02:39]}  Rac8 {[%clk 0:01:50]} 19. Rfd1 {[%clk 0:02:35]}  Qc4 {[%clk 0:01:49]} 20. Qxe4 {[%clk 0:02:33]} 0-1


[Site "https://www.chess.com"]

[Event "Titled Tuesday Blitz March 07 Early 2023"]
[White "Quirke, Jeffrey"]
[Black "Boder, Jan"]
[WhiteFideId "2013029"]
[BlackFideId "16243226"]
[WhiteElo "2195"]
[BlackElo "2241"]
[Result "1-0"]
[Round "06"]
[TimeControl "180+2"]
[Date "2023.03.07"]
[WhiteClock "0:01:27"]
[BlackClock "0:00:10"]

1. e4 {[%clk 0:03:00]}  c6 {[%clk 0:02:52]} 2. d4 {[%clk 0:02:58]}  d5 {[%clk 0:02:53]} 3. exd5 {[%clk 0:02:58]}  cxd5 {[%clk 0:02:48]} 4. Nf3 {[%clk 0:02:57]}  Nf6 {[%clk 0:02:46]} 5. c3 {[%clk 0:02:54]}  Nc6 {[%clk 0:02:46]} 6. Be3 {[%clk 0:02:54]}  e6 {[%clk 0:02:46]} 7. Nbd2 {[%clk 0:02:52]}  Be7 {[%clk 0:02:47]} 8. Bd3 {[%clk 0:02:50]}  O-O {[%clk 0:02:48]} 9. O-O {[%clk 0:02:50]}  Bd7 {[%clk 0:02:49]} 10. Re1 {[%clk 0:02:50]}  Rc8 {[%clk 0:02:50]} 11. Bf4 {[%clk 0:02:44]}  a6 {[%clk 0:02:45]} 12. h3 {[%clk 0:02:43]}  b5 {[%clk 0:02:08]} 13. a3 {[%clk 0:02:26]}  Na5 {[%clk 0:02:04]} 14. Ne5 {[%clk 0:02:12]}  Nc4 {[%clk 0:00:17]} 15. Rb1 {[%clk 0:02:10]}  Nxe5 {[%clk 0:00:09]} 16. Bxe5 {[%clk 0:02:09]}  Ne8 {[%clk 0:00:10]} 17. Qh5 {[%clk 0:01:27]} 1-0


[Site "https://www.chess.com"]

[Event "Titled Tuesday Blitz March 07 Early 2023"]
[White "Bongo Akanga Ndjila, Barthelemy"]
[Black "Degrande, Marigje"]
[WhiteFideId "10609431"]
[BlackFideId "262757"]
[WhiteElo "1768"]
[BlackElo "2208"]
[Result "1-0"]
[Round "06"]
[TimeControl "180+2"]
[Date "2023.03.07"]
[WhiteClock "0:00:46"]
[BlackClock "0:00:12"]

1. d4 {[%clk 0:02:54]}  Nf6 {[%clk 0:02:59]} 2. c4 {[%clk 0:02:53]}  c5 {[%clk 0:02:59]} 3. d5 {[%clk 0:02:53]}  e6 {[%clk 0:02:59]} 4. Nc3 {[%clk 0:02:52]}  exd5 {[%clk 0:02:59]} 5. cxd5 {[%clk 0:02:53]}  d6 {[%clk 0:03:00]} 6. Nf3 {[%clk 0:02:52]}  g6 {[%clk 0:03:00]} 7. Bf4 {[%clk 0:02:52]}  a6 {[%clk 0:02:48]} 8. a4 {[%clk 0:02:50]}  Bg7 {[%clk 0:02:48]} 9. h3 {[%clk 0:02:49]}  O-O {[%clk 0:02:47]} 10. e3 {[%clk 0:02:49]}  Re8 {[%clk 0:02:42]} 11. Bd3 {[%clk 0:02:48]}  Qe7 {[%clk 0:02:35]} 12. O-O {[%clk 0:02:40]}  Nbd7 {[%clk 0:02:32]} 13. Nd2 {[%clk 0:02:39]}  Ne5 {[%clk 0:02:28]} 14. Be2 {[%clk 0:02:33]}  Bd7 {[%clk 0:02:19]} 15. e4 {[%clk 0:02:21]}  Reb8 {[%clk 0:01:52]} 16. Qc2 {[%clk 0:02:16]}  Ne8 {[%clk 0:01:45]} 17. Bh2 {[%clk 0:02:10]}  f5 {[%clk 0:01:42]} 18. f4 {[%clk 0:02:10]}  Nf7 {[%clk 0:01:39]} 19. exf5 {[%clk 0:01:55]}  Bxc3 {[%clk 0:01:32]} 20. fxg6 {[%clk 0:01:44]}  Bd4+ {[%clk 0:01:30]} 21. Kh1 {[%clk 0:01:42]}  hxg6 {[%clk 0:01:30]} 22. Qxg6+ {[%clk 0:01:41]}  Ng7 {[%clk 0:01:30]} 23. Rae1 {[%clk 0:01:37]}  Bf5 {[%clk 0:01:27]} 24. Qg3 {[%clk 0:01:26]}  Qf6 {[%clk 0:01:26]} 25. Bd3 {[%clk 0:01:24]}  Bxd3 {[%clk 0:01:15]} 26. Qxd3 {[%clk 0:01:23]}  Bxb2 {[%clk 0:01:13]} 27. Ne4 {[%clk 0:01:22]}  Qd4 {[%clk 0:01:08]} 28. Qg3 {[%clk 0:01:21]}  Nh6 {[%clk 0:01:00]} 29. Nxd6 {[%clk 0:01:17]}  Qxd5 {[%clk 0:00:53]} 30. f5 {[%clk 0:01:12]}  Be5 {[%clk 0:00:46]} 31. Qxe5 {[%clk 0:01:04]}  Qxe5 {[%clk 0:00:36]} 32. Bxe5 {[%clk 0:01:00]}  Rd8 {[%clk 0:00:32]} 33. f6 {[%clk 0:01:00]}  Nh5 {[%clk 0:00:22]} 34. f7+ {[%clk 0:00:57]}  Kf8 {[%clk 0:00:18]} 35. Nxb7 {[%clk 0:00:50]}  Rd5 {[%clk 0:00:13]} 36. Bd6+ {[%clk 0:00:49]}  Rxd6 {[%clk 0:00:14]} 37. Nxd6 {[%clk 0:00:50]}  Ng3+ {[%clk 0:00:14]} 38. Kg1 {[%clk 0:00:46]}  Nxf1 {[%clk 0:00:15]} 39. Re8+ {[%clk 0:00:46]}  Rxe8 {[%clk 0:00:12]} 1-0


[Site "https://www.chess.com"]

[Event "Titled Tuesday Blitz March 07 Early 2023"]
[White "Nihal Sarin"]
[Black "Fedoseev, Vladimir"]
[WhiteFideId "25092340"]
[BlackFideId "24130737"]
[WhiteElo "2689"]
[BlackElo "2752"]
[Result "1-0"]
[Round "07"]
[TimeControl "180+2"]
[Date "2023.03.07"]
[WhiteClock "0:00:08"]
[BlackClock "0:00:03"]

1. e4 {[%clk 0:02:58]}  c5 {[%clk 0:02:59]} 2. Nf3 {[%clk 0:02:58]}  d6 {[%clk 0:03:00]} 3. d4 {[%clk 0:02:58]}  cxd4 {[%clk 0:03:00]} 4. Nxd4 {[%clk 0:02:59]}  Nf6 {[%clk 0:03:01]} 5. Nc3 {[%clk 0:02:59]}  a6 {[%clk 0:03:02]} 6. Be2 {[%clk 0:02:52]}  e5 {[%clk 0:02:57]} 7. Nf3 {[%clk 0:02:51]}  h6 {[%clk 0:02:56]} 8. Nd2 {[%clk 0:02:45]}  Nc6 {[%clk 0:02:53]} 9. Nc4 {[%clk 0:02:32]}  Nd4 {[%clk 0:02:44]} 10. a4 {[%clk 0:02:06]}  Be6 {[%clk 0:02:42]} 11. Be3 {[%clk 0:02:06]}  Rc8 {[%clk 0:02:09]} 12. Bxd4 {[%clk 0:02:05]}  Bxc4 {[%clk 0:02:09]} 13. Be3 {[%clk 0:02:06]}  Bxe2 {[%clk 0:02:01]} 14. Qxe2 {[%clk 0:02:07]}  Qa5 {[%clk 0:02:00]} 15. O-O {[%clk 0:02:03]}  Be7 {[%clk 0:01:57]} 16. Bd2 {[%clk 0:01:53]}  Qb6 {[%clk 0:01:55]} 17. Qd3 {[%clk 0:01:50]}  O-O {[%clk 0:01:50]} 18. a5 {[%clk 0:01:49]}  Qc6 {[%clk 0:01:48]} 19. Rfd1 {[%clk 0:01:31]}  Rfd8 {[%clk 0:01:44]} 20. Be3 {[%clk 0:01:31]}  Qc4 {[%clk 0:01:33]} 21. Bb6 {[%clk 0:01:27]}  Rd7 {[%clk 0:01:33]} 22. Qxc4 {[%clk 0:00:51]}  Rxc4 {[%clk 0:01:32]} 23. f3 {[%clk 0:00:52]}  Bd8 {[%clk 0:00:59]} 24. Bf2 {[%clk 0:00:52]}  Kf8 {[%clk 0:00:51]} 25. Kf1 {[%clk 0:00:52]}  Ke7 {[%clk 0:00:50]} 26. g4 {[%clk 0:00:42]}  Ke6 {[%clk 0:00:49]} 27. h4 {[%clk 0:00:42]}  Rdc7 {[%clk 0:00:34]} 28. Rd3 {[%clk 0:00:23]}  R7c6 {[%clk 0:00:34]} 29. Ra3 {[%clk 0:00:18]}  Nd7 {[%clk 0:00:24]} 30. Kg2 {[%clk 0:00:18]}  Nf8 {[%clk 0:00:21]} 31. Nd5 {[%clk 0:00:15]}  Ng6 {[%clk 0:00:17]} 32. h5 {[%clk 0:00:15]}  Rxc2 {[%clk 0:00:13]} 33. hxg6 {[%clk 0:00:13]}  Bh4 {[%clk 0:00:13]} 34. Kh3 {[%clk 0:00:07]}  Bxf2 {[%clk 0:00:04]} 35. gxf7 {[%clk 0:00:07]}  Kxf7 {[%clk 0:00:03]} 36. Nb4 {[%clk 0:00:08]}  Bd4 {[%clk 0:00:03]} 37. Nxc2 {[%clk 0:00:07]}  Rxc2 {[%clk 0:00:04]} 38. Rab3 {[%clk 0:00:08]}  Kf6 {[%clk 0:00:04]} 39. Rxb7 {[%clk 0:00:07]}  Kg5 {[%clk 0:00:03]} 40. Rxg7+ {[%clk 0:00:06]}  Kf6 {[%clk 0:00:03]} 41. Rd7 {[%clk 0:00:06]}  Ke6 {[%clk 0:00:03]} 42. Rh7 {[%clk 0:00:06]}  Rxb2 {[%clk 0:00:03]} 43. Rxh6+ {[%clk 0:00:07]}  Ke7 {[%clk 0:00:03]} 44. g5 {[%clk 0:00:07]}  Ra2 {[%clk 0:00:04]} 45. Kg4 {[%clk 0:00:08]}  Rxa5 {[%clk 0:00:02]} 46. Rb3 {[%clk 0:00:08]}  Ra1 {[%clk 0:00:03]} 47. Rb7+ {[%clk 0:00:08]} 1-0


[Site "https://www.chess.com"]

[Event "Titled Tuesday Blitz March 07 Early 2023"]
[White "Tsydypov, Zhamsaran"]
[Black "Hakobyan, Aram"]
[WhiteFideId "4108566"]
[BlackFideId "13306677"]
[WhiteElo "2584"]
[BlackElo "2563"]
[Result "1-0"]
[Round "07"]
[TimeControl "180+2"]
[Date "2023.03.07"]
[WhiteClock "0:01:13"]
[BlackClock "0:00:04"]

1. e4 {[%clk 0:03:00]}  g6 {[%clk 0:03:00]} 2. d4 {[%clk 0:03:00]}  Bg7 {[%clk 0:03:01]} 3. Nc3 {[%clk 0:03:00]}  c5 {[%clk 0:03:00]} 4. d5 {[%clk 0:02:59]}  d6 {[%clk 0:03:00]} 5. h3 {[%clk 0:02:57]}  Nf6 {[%clk 0:03:00]} 6. Nf3 {[%clk 0:02:58]}  O-O {[%clk 0:03:00]} 7. Be2 {[%clk 0:02:56]}  b5 {[%clk 0:02:56]} 8. Bxb5 {[%clk 0:02:53]}  Nxe4 {[%clk 0:02:52]} 9. Nxe4 {[%clk 0:02:53]}  Qa5+ {[%clk 0:02:52]} 10. Nfd2 {[%clk 0:02:33]}  Qxb5 {[%clk 0:02:52]} 11. c4 {[%clk 0:02:33]}  Qb6 {[%clk 0:02:39]} 12. O-O {[%clk 0:02:33]}  Nd7 {[%clk 0:02:31]} 13. Rb1 {[%clk 0:02:31]}  a5 {[%clk 0:02:31]} 14. b3 {[%clk 0:02:30]}  a4 {[%clk 0:02:18]} 15. Re1 {[%clk 0:02:27]}  axb3 {[%clk 0:02:17]} 16. axb3 {[%clk 0:02:28]}  Ra2 {[%clk 0:02:15]} 17. Re3 {[%clk 0:02:26]}  Ne5 {[%clk 0:02:14]} 18. Nc3 {[%clk 0:02:25]}  Ra8 {[%clk 0:02:12]} 19. Bb2 {[%clk 0:02:24]}  Bf5 {[%clk 0:02:11]} 20. Nce4 {[%clk 0:02:25]}  Ra2 {[%clk 0:02:09]} 21. Bc3 {[%clk 0:02:21]}  Rb8 {[%clk 0:02:03]} 22. f4 {[%clk 0:02:19]}  Bh6 {[%clk 0:01:55]} 23. Qf1 {[%clk 0:02:11]}  Rc2 {[%clk 0:01:28]} 24. Rbe1 {[%clk 0:02:07]}  Bxe4 {[%clk 0:01:12]} 25. Nxe4 {[%clk 0:02:04]}  Nd7 {[%clk 0:01:11]} 26. Ba1 {[%clk 0:01:43]}  Ra2 {[%clk 0:01:08]} 27. Nc3 {[%clk 0:01:35]}  Rxa1 {[%clk 0:01:04]} 28. Rxa1 {[%clk 0:01:34]}  Bg7 {[%clk 0:01:05]} 29. Nb5 {[%clk 0:01:29]}  Bxa1 {[%clk 0:01:01]} 30. Qxa1 {[%clk 0:01:29]}  Qd8 {[%clk 0:00:59]} 31. Qe1 {[%clk 0:01:28]}  Kf8 {[%clk 0:00:54]} 32. Qh4 {[%clk 0:01:28]}  Nf6 {[%clk 0:00:54]} 33. Na7 {[%clk 0:01:19]}  Qc7 {[%clk 0:00:18]} 34. Nc6 {[%clk 0:01:18]}  Re8 {[%clk 0:00:19]} 35. Rxe7 {[%clk 0:01:13]}  Rxe7 {[%clk 0:00:17]} 36. Qxf6 {[%clk 0:01:13]}  Ke8 {[%clk 0:00:04]} 37. Qh8+ {[%clk 0:01:13]} 1-0


[Site "https://www.chess.com"]

[Event "Titled Tuesday Blitz March 07 Early 2023"]
[White "Nakamura, Hikaru"]
[Black "Oparin, Grigoriy"]
[WhiteFideId "2016192"]
[BlackFideId "24125890"]
[WhiteElo "2879"]
[BlackElo "2641"]
[Result "1-0"]
[Round "07"]
[TimeControl "180+2"]
[Date "2023.03.07"]
[WhiteClock "0:00:12"]
[BlackClock "0:00:01"]

1. Nf3 {[%clk 0:03:00]}  c5 {[%clk 0:02:57]} 2. e3 {[%clk 0:02:55]}  Nf6 {[%clk 0:02:55]} 3. b3 {[%clk 0:02:55]}  e6 {[%clk 0:02:52]} 4. Bb2 {[%clk 0:02:55]}  b6 {[%clk 0:02:52]} 5. d4 {[%clk 0:02:55]}  Bb7 {[%clk 0:02:53]} 6. Bd3 {[%clk 0:02:54]}  Be7 {[%clk 0:02:46]} 7. O-O {[%clk 0:02:53]}  O-O {[%clk 0:02:46]} 8. dxc5 {[%clk 0:02:53]}  bxc5 {[%clk 0:02:45]} 9. c4 {[%clk 0:02:52]}  Nc6 {[%clk 0:02:44]} 10. Nc3 {[%clk 0:02:50]}  d6 {[%clk 0:02:43]} 11. Qe2 {[%clk 0:02:43]}  Qc7 {[%clk 0:02:34]} 12. Rad1 {[%clk 0:02:43]}  Rad8 {[%clk 0:02:34]} 13. Bb1 {[%clk 0:02:38]}  a6 {[%clk 0:02:31]} 14. Rd2 {[%clk 0:02:33]}  Rd7 {[%clk 0:02:06]} 15. Rfd1 {[%clk 0:02:22]}  Rfd8 {[%clk 0:02:06]} 16. Ne4 {[%clk 0:02:22]}  Nxe4 {[%clk 0:02:03]} 17. Bxe4 {[%clk 0:02:23]}  h6 {[%clk 0:02:02]} 18. Bc3 {[%clk 0:02:11]}  Bf8 {[%clk 0:01:46]} 19. h4 {[%clk 0:02:02]}  Ne7 {[%clk 0:01:34]} 20. Bb1 {[%clk 0:02:00]}  Bc6 {[%clk 0:01:32]} 21. h5 {[%clk 0:01:58]}  Qb7 {[%clk 0:01:31]} 22. Nh4 {[%clk 0:01:57]}  Be4 {[%clk 0:01:13]} 23. Qg4 {[%clk 0:01:45]}  Bxb1 {[%clk 0:01:13]} 24. Rxb1 {[%clk 0:01:41]}  d5 {[%clk 0:01:07]} 25. Rc1 {[%clk 0:01:19]}  dxc4 {[%clk 0:00:43]} 26. Rxd7 {[%clk 0:01:18]}  Rxd7 {[%clk 0:00:44]} 27. bxc4 {[%clk 0:01:17]}  Qc6 {[%clk 0:00:35]} 28. Nf3 {[%clk 0:01:15]}  Qa4 {[%clk 0:00:31]} 29. Ne5 {[%clk 0:01:15]}  Rd8 {[%clk 0:00:30]} 30. Qe2 {[%clk 0:00:49]}  Nc6 {[%clk 0:00:26]} 31. Ng4 {[%clk 0:00:46]}  f5 {[%clk 0:00:25]} 32. Nh2 {[%clk 0:00:46]}  Qa3 {[%clk 0:00:18]} 33. Qc2 {[%clk 0:00:42]}  Nb4 {[%clk 0:00:17]} 34. Bxb4 {[%clk 0:00:42]}  Qxb4 {[%clk 0:00:18]} 35. Nf3 {[%clk 0:00:40]}  Be7 {[%clk 0:00:17]} 36. Rb1 {[%clk 0:00:40]}  Qa5 {[%clk 0:00:15]} 37. e4 {[%clk 0:00:36]}  fxe4 {[%clk 0:00:09]} 38. Qxe4 {[%clk 0:00:37]}  Qxa2 {[%clk 0:00:09]} 39. Ne5 {[%clk 0:00:29]}  Bf6 {[%clk 0:00:07]} 40. Ng6 {[%clk 0:00:29]}  Re8 {[%clk 0:00:06]} 41. Rb6 {[%clk 0:00:22]}  Qa1+ {[%clk 0:00:06]} 42. Kh2 {[%clk 0:00:22]}  Qd4 {[%clk 0:00:07]} 43. Qxd4 {[%clk 0:00:19]}  cxd4 {[%clk 0:00:05]} 44. Rxa6 {[%clk 0:00:19]}  Rc8 {[%clk 0:00:03]} 45. f4 {[%clk 0:00:13]}  Rxc4 {[%clk 0:00:01]} 46. Ra8+ {[%clk 0:00:12]} 1-0


[Site "https://www.chess.com"]

[Event "Titled Tuesday Blitz March 07 Early 2023"]
[White "Naroditsky, Daniel"]
[Black "Bluebaum, Matthias"]
[WhiteFideId "2026961"]
[BlackFideId "24651516"]
[WhiteElo "2633"]
[BlackElo "2638"]
[Result "0-1"]
[Round "07"]
[TimeControl "180+2"]
[Date "2023.03.07"]
[WhiteClock "0:00:03"]
[BlackClock "0:00:28"]

1. e4 {[%clk 0:03:00]}  e6 {[%clk 0:02:59]} 2. d4 {[%clk 0:02:56]}  d5 {[%clk 0:03:00]} 3. e5 {[%clk 0:02:48]}  c5 {[%clk 0:03:00]} 4. c3 {[%clk 0:02:49]}  Nc6 {[%clk 0:03:01]} 5. Nf3 {[%clk 0:02:49]}  Nge7 {[%clk 0:03:01]} 6. Bd3 {[%clk 0:02:48]}  cxd4 {[%clk 0:03:02]} 7. cxd4 {[%clk 0:02:48]}  Nf5 {[%clk 0:03:02]} 8. Bxf5 {[%clk 0:02:40]}  exf5 {[%clk 0:03:03]} 9. O-O {[%clk 0:02:40]}  Be7 {[%clk 0:03:03]} 10. Nc3 {[%clk 0:02:40]}  Be6 {[%clk 0:03:03]} 11. Ne2 {[%clk 0:02:28]}  g5 {[%clk 0:03:03]} 12. Ne1 {[%clk 0:02:15]}  f4 {[%clk 0:03:01]} 13. Nc3 {[%clk 0:02:14]}  Qb6 {[%clk 0:02:51]} 14. Nc2 {[%clk 0:02:14]}  Rd8 {[%clk 0:02:51]} 15. Re1 {[%clk 0:02:08]}  Bf5 {[%clk 0:02:49]} 16. Na4 {[%clk 0:01:57]}  Qa5 {[%clk 0:02:28]} 17. Nc3 {[%clk 0:01:46]}  Bxc2 {[%clk 0:02:19]} 18. Qxc2 {[%clk 0:01:47]}  Nxd4 {[%clk 0:02:19]} 19. Qd1 {[%clk 0:01:47]}  Ne6 {[%clk 0:02:19]} 20. Bd2 {[%clk 0:01:48]}  Qa6 {[%clk 0:02:15]} 21. Rc1 {[%clk 0:01:45]}  O-O {[%clk 0:02:10]} 22. h4 {[%clk 0:01:41]}  gxh4 {[%clk 0:01:57]} 23. Qh5 {[%clk 0:01:34]}  Qd3 {[%clk 0:01:51]} 24. Rcd1 {[%clk 0:01:10]}  Qg6 {[%clk 0:01:51]} 25. Qxg6+ {[%clk 0:00:52]}  hxg6 {[%clk 0:01:42]} 26. Bc1 {[%clk 0:00:53]}  Bb4 {[%clk 0:01:38]} 27. Re2 {[%clk 0:00:48]}  Bxc3 {[%clk 0:01:37]} 28. bxc3 {[%clk 0:00:48]}  Rc8 {[%clk 0:01:21]} 29. Rd3 {[%clk 0:00:42]}  d4 {[%clk 0:01:17]} 30. Ba3 {[%clk 0:00:38]}  Rfd8 {[%clk 0:01:10]} 31. cxd4 {[%clk 0:00:30]}  Rxd4 {[%clk 0:01:08]} 32. Rxd4 {[%clk 0:00:25]}  Nxd4 {[%clk 0:01:09]} 33. Re4 {[%clk 0:00:21]}  Ne6 {[%clk 0:01:08]} 34. Be7 {[%clk 0:00:21]}  g5 {[%clk 0:01:07]} 35. a4 {[%clk 0:00:20]}  Kh7 {[%clk 0:01:07]} 36. a5 {[%clk 0:00:21]}  Rc1+ {[%clk 0:00:57]} 37. Kh2 {[%clk 0:00:21]}  Rc2 {[%clk 0:00:58]} 38. f3 {[%clk 0:00:20]}  Ra2 {[%clk 0:00:41]} 39. Rb4 {[%clk 0:00:16]}  Rxa5 {[%clk 0:00:41]} 40. Rxb7 {[%clk 0:00:17]}  Rxe5 {[%clk 0:00:37]} 41. Rxa7 {[%clk 0:00:16]}  Kg6 {[%clk 0:00:37]} 42. Ra8 {[%clk 0:00:13]}  Re2 {[%clk 0:00:37]} 43. Kh3 {[%clk 0:00:12]}  Re1 {[%clk 0:00:36]} 44. Kh2 {[%clk 0:00:10]}  Ng7 {[%clk 0:00:31]} 45. Ra6+ {[%clk 0:00:09]}  Re6 {[%clk 0:00:31]} 46. Ra7 {[%clk 0:00:09]}  Nf5 {[%clk 0:00:32]} 47. Bc5 {[%clk 0:00:08]}  Ng3 {[%clk 0:00:28]} 48. Bf2 {[%clk 0:00:05]}  Re2 {[%clk 0:00:28]} 49. Ra6+ {[%clk 0:00:04]}  f6 {[%clk 0:00:29]} 50. Bd4 {[%clk 0:00:04]}  Nh5 {[%clk 0:00:27]} 51. Kh3 {[%clk 0:00:03]}  Rd2 {[%clk 0:00:27]} 52. Bc3 {[%clk 0:00:02]}  Rd1 {[%clk 0:00:28]} 53. Kh2 {[%clk 0:00:02]}  Ng3 {[%clk 0:00:28]} 54. Rxf6+ {[%clk 0:00:02]}  Kh5 {[%clk 0:00:28]} 55. Be1 {[%clk 0:00:02]}  Rxe1 {[%clk 0:00:27]} 56. Rh6+ {[%clk 0:00:02]}  Kxh6 {[%clk 0:00:27]} 57. Kh3 {[%clk 0:00:03]}  Kh5 {[%clk 0:00:28]} 0-1


[Site "https://www.chess.com"]